Cogmind - Beta 15 @@@ ROGUE MODE // 2025.09.23 @ 11:48:17 Player: Crusang Result: Destroyed by NT-X86(R) with Subdweller Machine Gun Performance ------------- Evolutions (0) 0 Regions Visited (2) 400 Robots Destroyed (5) 25 Value Destroyed (56) 56 Prototype IDs (0) 0 Alien Tech Used (0) 0 Bonus (-465) -465 TOTAL SCORE: 16 Bonus ------- Friendly Fire -465 Cogmind --------- Core Integrity 0/250 Matter 96/300 Energy 123/125 System Corruption 0% Temperature Cool (0) Movement Rolling (80) Location -10/Subcaves Parts ------- > --- POWER (1) -------- Light Ion Engine > --- PROPULSION (2) --- Wheel Wheel > --- UTILITY (2) ------ Heat Sink > --- WEAPON (2) ------- (None) > --- INVENTORY (5) ---- (None) Peak State ------------ > --- POWER ------------ Makeshift Power Source > --- PROPULSION ------- Wheel > --- UTILITY ---------- (None) > --- WEAPON ----------- Battle Rifle > --- INVENTORY -------- Light Ion Engine [Rating: 7] Favorites ----------- Power Light Ion Engine Engine Light Ion Engine Propulsion Aluminum Leg Leg Aluminum Leg Wheel Wheel Utility Heat Sink Device Heat Sink Weapon EM Pulse Gun Energy Gun EM Pulse Gun Ballistic Gun Assault Rifle Build | -11 -10 -10 ------- Run | Yrd Mat Sub Slots Evolved . | . . . Power . | . . . Propulsion . | . . . Utility . | . . . Weapon . | . . . Parts Attached 13 | 5 . 8 Power 3 | 1 . 2 Engine 3 | 1 . 2 Core . | . . . Reactor . | . . . Propulsion 6 | 2 . 4 Treads . | . . . Leg 2 | 2 . . Wheel 4 | . . 4 Hover . | . . . Flight . | . . . Utility 1 | . . 1 Device 1 | . . 1 Storage . | . . . Processor . | . . . Hackware . | . . . Protection . | . . . Artifact . | . . . Weapon 3 | 2 . 1 Energy Gun 1 | 1 . . Energy Cannon . | . . . Ballistic Gun 2 | 1 . 1 Ballistic Cannon . | . . . Launcher . | . . . Special Weapon . | . . . Impact Weapon . | . . . Slashing Weapon . | . . . Piercing Weapon . | . . . Special Melee Weapon . | . . . Unidentified Prototypes . | . . . Parts Lost 8 | . . 8 Power 2 | . . 2 Propulsion 3 | . . 3 Utility . | . . . Weapon 3 | . . 3 Highest Loss Streak 4 | . . 4 To Critical Strikes . | . . . Average Backups 1 | 1 3 1 Power . | . 1 . Propulsion 1 | . 2 . Utility . | . . . Weapon . | . . . Tool/Special . | . . . Unused Backups . | . . . Power . | . . . Propulsion . | . . . Utility . | . . . Weapon . | . . . Tool/Special . | . . . Average Slot Usage (%) 48 | . 68 33 Engine 10 | . 14 8 Leg 13 | . 26 3 Wheel 5 | . . 10 Energy Gun 7 | . 13 2 Ballistic Gun 9 | . 14 6 Peak Build Rating 7 | 5 5 7 Average Rating 3 | 4 4 2 On Entrance 3 | . 5 4 Naked Turns . | . . . Heaviest Build 7 | 7 7 7 Greatest Support 26 | 20 20 26 Greatest Overweight (x) 1 | 1 . 1 Average Overweight (x) . | . . . Largest Inventory Capacity 5 | 5 5 5 Average Capacity 5 | 5 5 5 Most Carried 3 | 3 3 3 Average Carried 1 | 1 3 1 Final Capacity 5 | 5 5 5 Final Carried 3 | 3 3 . Class Distribution -------------------- 100% | Mutant Dominant Class ---------------- Mutant | -10/Materials Mutant | -10/Subcaves Resources | -11 -10 -10 ----------- Run | Yrd Mat Sub Matter Collected 141 | . . 141 Remotely . | . . . Salvage Created 154 | . 94 60 Parts 6 | . 3 3 Haulers Intercepted . | . . . Recyclers Shooed . | . . . Parts Field Recycled . | . . . Retrieved Matter . | . . . Parts Self-Destructed 17 | . . 17 Prevented 2 | . . 2 Kills | -11 -10 -10 ------- Run | Yrd Mat Sub Combat Hostiles Destroyed 1 | . . 1 Guns 1 | . . 1 Classes Destroyed 3 | . 2 1 Watcher 1 | . 1 . Subdweller 1 | . . 1 Federalist 3 | . 3 . Best Kill Streak 1 | . 1 1 Combat Bots Only 1 | . . 1 Max Kills in Single Turn 2 | . 2 1 Gunslinging . | . . . Exploded . | . . . Melee . | . . . Uniques/NPCs Destroyed . | . . . Combat | -11 -10 -10 -------- Run | Yrd Mat Sub Hostile Shots Fired 67 | . 1 66 Missed 29 | . . 29 Hits 38 | . 1 37 Projectile 38 | . 1 37 Critical Strikes 1 | . . 1 Damage Taken 789 | . 57 732 Core 268 | . . 268 Absorbed by Shields . | . . . Core Remaining (%) 100 | 100 . . Volleys Fired 16 | . 7 9 Largest 2 | . 2 2 Hottest 60 | . 60 60 Shots Fired 26 | . 14 12 Gun 26 | . 14 12 Cannon . | . . . Launcher . | . . . Special . | . . . Kinetic 14 | . 7 7 Thermal . | . . . Explosive . | . . . Electromagnetic 12 | . 7 5 Robot Hit Streak 10 | . 4 10 Robot Miss Streak 3 | . 3 1 Penetration Max . | . . . Secondary Targets . | . . . Shots Hit Robots 18 | . 7 11 Core Hits 9 | . 6 3 Critical Kills . | . . . Critical Parts Destroyed . | . . . Critical Strikes . | . . . Melee Attacks . | . . . Impact . | . . . Slashing . | . . . Piercing . | . . . Sneak Attacks . | . . . Combat Hostiles . | . . . Follow-up Attacks . | . . . Damage Inflicted 457 | . 312 145 Guns 286 | . 141 145 Cannons . | . . . Explosions 166 | . 166 . Melee . | . . . Ramming 5 | . 5 . Kinetic 177 | . 77 100 Thermal 166 | . 166 . Explosive . | . . . Electromagnetic 109 | . 64 45 Impact . | . . . Slashing . | . . . Piercing . | . . . Highest Corruption . | . . . Average Corruption . | . . . Corruption Purged . | . . . Corruption Blocked . | . . . Overload Shots . | . . . Overflow Damage . | . . . Projectiles . | . . . Explosions . | . . . Melee . | . . . Knockbacks . | . . . Impact . | . . . Kinetic . | . . . Secondary . | . . . Self-Inflicted Damage 36 | . 36 . Shots 1 | . 1 . Rammed 1 | . . 1 Targets Rammed 2 | . 1 1 Kicked 1 | . 1 . Crushed . | . . . Highest Temperature 224 | . 12 224 Average Temperature 73 | . 10 109 Received Heat Transfer 410 | . 12 398 Siege Activations . | . . . Martial Activations . | . . . Shielding Activations . | . . . Robots Disrupted . | . . . Combat Hostiles . | . . . Robots Corrupted . | . . . Combat Hostiles . | . . . Parts Fried . | . . . Impact Corruptions . | . . . Robots Melted . | . . . Combat Hostiles . | . . . Parts Melted . | . . . Heat Transferred 250 | . 250 . Parts Sabotaged . | . . . Parts Stolen . | . . . Parts Stripped . | . . . Power Chain Reactions 2 | . 2 . Alert | -11 -10 -10 ------- Run | Yrd Mat Sub Maximum Alert Level . | . . . Low Security (%) 100 | 100 100 . Level 1 . | . . . Level 2 . | . . . Level 3 . | . . . Level 4 . | . . . Level 5 . | . . . High Security . | . . . Max Security . | . . . Peak Influence 17 | . 17 . Initial . | . . . Average 1 | . 2 . Influence Increases 26 | . 26 . Destroy 0b10 Robot/NC 5 | . 5 . Destroy Leader 2 | . 2 . Successful Hack 14 | . 14 . Destroy Structure 5 | . 5 . Influence Decreases 26 | . 26 . Time Decay 26 | . 26 . Squads Dispatched 3 | . 3 . Investigation 2 | . 2 . Extermination . | . . . Reinforcement 1 | . 1 . Assault . | . . . Garrison . | . . . Intercept . | . . . Searches Triggered . | . . . Construction Impeded . | . . . Haulers Reinforced . | . . . Active Scanning Responses . | . . . Cargo Convoy Interrupts . | . . . Stealth | -11 -10 -10 --------- Run | Yrd Mat Sub Distress Signals . | . . . Communications Jammed . | . . . Distress Signals . | . . . Times Spotted 16 | . 5 11 Peak Tracking Total 4 | . 3 4 Tactical Retreats 3 | . . 3 Traps | -11 -10 -10 ------- Run | Yrd Mat Sub Traps Triggered 2 | . 2 . Indirectly . | . . . Trap Hack Attempts . | . . . Triggered . | . . . Disarmed . | . . . Reprogrammed . | . . . Reused . | . . . Traps Extracted . | . . . Installed . | . . . Triggered . | . . . Machines | -11 -10 -10 ---------- Run | Yrd Mat Sub Machines Disabled . | . . . Max in Single Turn . | . . . Machines Repaired . | . . . Machines Dismantled . | . . . Machines Sabotaged . | . . . Overloaded Fab Kills . | . . . Hacking | -11 -10 -10 --------- Run | Yrd Mat Sub Machines Accessed 3 | . 2 1 Terminals 2 | . 2 . Fabricators . | . . . Repair Stations . | . . . Recycling Units . | . . . Scanalyzers . | . . . Garrison Access . | . . . Total Hacks 10 | . 5 5 Successful 7 | . 2 5 Failed 3 | . 3 . Catastrophic . | . . . Database Lockouts . | . . . Manual . | . . . Terminals 5 | . 5 . Fabricators . | . . . Repair Stations . | . . . Recycling Units . | . . . Scanalyzers . | . . . Garrison Access . | . . . Terminal Hacks 7 | . 2 5 Record 6 | . 1 5 Locate Traps 1 | . 1 . Fabricator Hacks . | . . . Repair Station Hacks . | . . . Recycling Unit Hacks . | . . . Scanalyzer . | . . . Garrison Access Hacks . | . . . Unauthorized Hacks . | . . . Terminals . | . . . Fabricators . | . . . Repair Stations . | . . . Recycling Units . | . . . Scanalyzers . | . . . Garrison Access . | . . . Data Cores Recovered . | . . . Used . | . . . Hacking Detections 2 | . 2 . Full Trace Events 1 | . 1 . Feedback Events . | . . . Feedback Blocked . | . . . Robot Schematics Acquired . | . . . Robots Built . | . . . Authchips . | . . . Time . | . . . Total Robot Build Rating . | . . . Part Schematics Acquired . | . . . Parts Built . | . . . Authchips . | . . . Time . | . . . Total Part Build Rating . | . . . Parts Repaired . | . . . Time . | . . . Parts Recycled . | . . . Recycled Matter . | . . . Retrieved Matter . | . . . Retrieved Components . | . . . Parts Scanalyzed . | . . . Part Schematics Acquired . | . . . Parts Damaged . | . . . Bothacking | -11 -10 -10 ------------ Run | Yrd Mat Sub Used RIF Installer . | . . . Robots Hacked . | . . . Non-combat . | . . . Combat . | . . . Robot Hacks Applied . | . . . Relay Couplers Released . | . . . Fabnet Peak Effective % . | . . . Robots Rewired . | . . . Allies Hacked . | . . . Hacks Repelled . | . . . Allies | -11 -10 -10 -------- Run | Yrd Mat Sub Total Allies . | . . . Largest Group . | . . . Highest-Rated Group . | . . . Highest-Rated Ally . | . . . Total Orders . | . . . Ally Attacks . | . . . Total Damage . | . . . Kills . | . . . Allies Corrupted . | . . . Allies Melted . | . . . Intel | -11 -10 -10 ------- Run | Yrd Mat Sub Active Infowar (turns) . | . . . Robot Analysis Total . | . . . Derelict Logs Recovered 1 | . . 1 Drone Launches . | . . . Drone Recoveries . | . . . Exploration | -11 -10 -10 ------------- Run | Yrd Mat Sub Turns Passed 557 | 53 221 283 Spaces Moved 504 | 39 157 308 Core 160 | 6 . 154 Treads . | . . . Legs 229 | 33 157 39 Wheels 115 | . . 115 Hover . | . . . Flight . | . . . Fastest Speed 50 | 50 120 50 Average Speed 95 | 110 120 80 Slowest Speed 120 | 120 120 120 Overloaded Moves . | . . . Propulsion Burnouts . | . . . Robots Hopped . | . . . Potential Cave-ins . | . . . Cave-ins Triggered . | . . . Exploration Rate (%) 20 | 4 37 21 Regions Visited 2 Branch Regions 1 Pre-discovered Areas . | . . . Known Exits Taken . | . . . Unknown Exits Taken 2 | 1 1 . Scrap Searched 1 | . . 1 Spaces Dug . | . . . Terrain Destroyed 5 | . 5 . Melee . | . . . Projectile . | . . . AOE 5 | . 5 . Terrain Rammed . | . . . Walls Destroyed . | . . . Machines Disabled . | . . . Actions | -11 -10 -10 --------- Run | Yrd Mat Sub Total 551 | 47 174 330 Wait 8 | . 8 . Move 502 | 38 156 308 Hop . | . . . Pick Up 4 | 4 . . Fast Attach 11 | 4 2 5 Attach 4 | 1 . 3 Detach . | . . . Swap . | . . . Drop . | . . . Fire 16 | . 7 9 Melee . | . . . Ram 1 | . . 1 Kick 1 | . 1 . Crush . | . . . Escape Stasis . | . . . Rewire 4 | . . 4 Trap . | . . . Miscellaneous . | . . . Route ------- -11/Scrapyard -10/Materials (discovered 4 exits: [*Mat x2] / [*Min] / *Sub) -10/Subcaves (discovered 3 exits: Mat x2 / Rec) History --------- Turn | Location | Event 34 | -11/Scrapyard | Discovered new exit (range 15) 54 | -11/Scrapyard | Entered Materials 55 | -10/Materials | Met a group of wandering Federalists 86 | -10/Materials | Discovered new exit (range 15) 131 | -10/Materials | Discovered new exit (range 15) 212 | -10/Materials | Discovered new exit (range 6) 220 | -10/Materials | Lost 4 allies 260 | -10/Materials | Discovered new exit (range 9) 275 | -10/Materials | Entered Subcaves 276 | -10/Subcaves | Approached by a straggling Scientist 297 | -10/Subcaves | Visited Clippyterm 301 | -10/Subcaves | Identified exit to Materials 301 | -10/Subcaves | Identified exit to Recycling 311 | -10/Subcaves | Build established: Mutant 374 | -10/Subcaves | Lost 4 parts (1p1n2w) 431 | -10/Subcaves | Core integrity fell below 50% 457 | -10/Subcaves | Lost 3 parts (1p2n) 501 | -10/Subcaves | A swath of the cavern ceiling suddenly collapsed 509 | -10/Subcaves | Core integrity fell below 20% 558 | -10/Subcaves | Destroyed by NT-X86(R) with Subdweller Machine Gun Last Messages --------------- 00420_ Found Battle Rifle. 00420_ Found Mak. Power Source. 00420_ Found 57 Matter. 00421_ Acquired 57 matter. 00421_ Acquired Mak. Power Source. 00424_ Slammed into PI-CAQ(R). 00424_ Com. Wheel destroyed. 00425_ Acquired Battle Rifle. 00426_ Wheel destroyed. 00426_ Mak. Power Source destroyed. 00432_ PI-CAQ(R) destroyed. 00495_ NT-X86(R): "ECOKILL!" 00501_ 58 Matter crushed. A swath of the cavern ceiling suddenly collapses. 00503_ Battle Rifle destroyed. 00529_ Acquired Heat Sink. 00531_ Acquired 59 matter. 00536_ Acquired Wheel. 00541_ Acquired derelict log, extracted data. Exit location confirmed. Map ----- +----------------------------------------------------+ | ?????????????????????????????????????????????????? | | ?????????????????????????????????????????????????? | | ?????????????????????????????????????????????????? | | ?????????????????????????????????????????????????? | | ?????????????????????????????????????????????????? | | ?????????????????????????????????????????????????? | | ?????????????????????????????????????????????????? | | ????????????????????????????????????????????????? | | ???????????????????????????????????????????????? | | ???????????????????????????????????????????????? | | ??????????????????????????????????????????????? | | ?####?????????????????????????????????????????? | | ## ##?#####??????????????????????????????????? | | # ## ???????????????????????????????????? | | ? &?????????????????????????????????????? | | ??## ???????????????????????????????????????? | | ??# #???"????????????????????????????????????? | | ??## #??? ????#???????????????????????????????? | | ???## ### #???????????????????????????????? | | ???## #???????????????????????????????? | | ?### # # #?????###???????????????????? | | ?# ## ###? ## #??### #???????????????????? | | ?# #?#? ##????# ##???# # #???????????????????? | | ## #?# ???????????## ##???????????????????? | | "### #?# #???######## #???????????????????? | | ## #### ###### ## ##@ ##???????????????????? | | # R #####????????????????? | | ## # # # #????????????????? | | "## ### ## ###"##????????????????? | | ## ## #############"#?????????????????? | | # ## # %#?????????##""#?????????????????? | | ## ##### ## ##????????##"""#?????????????????? | | ?####?## # #????##?##"##"#?????????????????? | | ??##### & ##?## #?#"""""##????????????????? | | ?## # ### #?#""#"###????????????????? | | ## # #?##"### #????????????????? | | # ##??#""####????????????????? | | #### # # #####""#"#?????????????????? | | ??## ### ### "##""""#?????????????????? | | ?## # # #### #"#"# "##?????????????????? | | ?# ### """####??????????????????? | | ?# ! # """"#????????????????????? | | ?# ### # ##### "###????????????????????? | | ## ## #???# ##?????????????????????? | | # # ### ##???# #### ##" ??????????????????? | | # # # #????# #??# ""??????????????????? | | # ### #???## ## "#??????????????????? | | ## ##### # "#??????????????????? | | # # ## ### ""#??????????????????? | | ##### ########?? " #??????????????????? | +----------------------------------------------------+ Best States ------------- Heat Dissipation 35 Energy Generation 10 Energy Capacity 125 Matter Stores 96 Matter Capacity 300 Sight Range 16 Terrain Scan Density 10 Evasion (%) 55 Item Schematics ----------------- None Robot Schematics ------------------ None Fabricated ------------ Nothing Repaired ---------- Nothing Alien Tech Used ----------------- None Achievements -------------- Backstab Challenges ------------ None Game ------ Seed ClaymoresPoweredDiverter Manual? 0 Play Time 00:10:19 Cumulative 6.4 hours Start 2025.09.23 @ 11:41:00 End 2025.09.23 @ 11:48:17 Sessions 1 Manual Loads 0 Difficulty Rogue Special Mode None Game No. 9 Rogue 2 Adventurer 6 Explorer 1 Win Type - Total 1 Types 1/0/0/0/0/0/0/0/0/0 Lore% 7 Gallery% 22 Achievement% 21 Wizard Run 0 Options --------- Layout 0 ASCII 0 Keyboard 0 Movement Numpad Keybinds 0 Fullscreen 2 Font 24/Smallcaps Map View 76x50 Zoom Use 0% Tactical HUD 1 Map Filters NONE Filters NONE Steam 1 RUN: 22938b3c-4e63-496f-b8c0-faaa104cae6a